bitfinex/quotes_SOLUSD_20250625
["timestamp","ask_amount","ask_price","bid_price","bid_amount"]
[1750876356152,18.68964886,143.38,143.35,13.64068188]
[1750876356557,18.68964886,143.38,143.36,6.66479848]
[1750876358252,18.68964886,143.38,143.36,100.9401696]
[1750876359549,6.2,143.37,143.36,100.9401696]
[1750876359746,6.2,143.37,143.36,93.96479848]
[1750876359955,6.2,143.37,143.36,87.3]
[1750876360761,12.86479848,143.37,143.32,93.96479848]
[1750876361051,18.64964886,143.35,143.32,93.96479848]
[1750876361638,18.64964886,143.35,143.32,100.94197322]
[1750876362065,19.83975837,143.37,143.32,100.94197322]
[1750876362281,18.64964886,143.36,143.32,100.94197322]
[1750876362454,36.71020456,143.37,143.33,6.66479848]
[1750876362959,38.48941038,143.37,143.33,6.66479848]
[1750876363261,38.48941038,143.37,143.33,13.64165009]
[1750876363757,31.51444734,143.37,143.33,13.64165009]
[1750876363961,6.2,143.37,143.33,13.64165009]
[1750876364139,6.2,143.37,143.34,6.66479848]
[1750876364340,6.2,143.37,143.36,6.66479848]
[1750876365256,6.2,143.37,143.36,13.6402449]
[1750876367375,6.2,143.37,143.35,13.6405187]
[1750876369353,6.2,143.37,143.35,100.9405187]
[1750876370644,18.68964886,143.38,143.35,100.9405187]
[1750876371155,18.68964886,143.38,143.36,6.66479848]
[1750876371863,18.68964886,143.38,143.35,94.27572022]
[1750876372040,18.68964886,143.38,143.36,6.66479848]
[1750876373167,18.68964886,143.38,143.35,100.9405187]
[1750876373542,0.04,143.43,143.38,11.5286]
[1750876373742,0.04,143.43,143.42,26.0]
[1750876373957,0.04,143.43,143.42,32.66479848]
[1750876374268,0.04,143.43,143.42,33.3620513]
[1750876375566,0.04,143.43,143.42,40.33457953]
[1750876376643,0.04,143.43,143.42,59.43455062]
[1750876378243,0.04,143.43,143.42,66.0993491]
[1750876379371,1e-08,143.44,143.43,13.32959696]
[1750876379680,1e-08,143.44,143.43,42.34959696]
[1750876380962,1e-08,143.44,143.43,13.63684059]
[1750876384163,1e-08,143.44,143.43,100.93684059]
[1750876386083,1e-08,143.44,143.43,107.60163907]
[1750876386560,1e-08,143.44,143.43,108.29884328]
[1750876386889,1e-08,143.44,143.43,127.39881437]
[1750876387080,0.04,143.45,143.44,13.32959696]
[1750876387266,0.04,143.45,143.44,42.26959696]
[1750876387679,0.04,143.45,143.44,42.96675256]
[1750876388293,0.04,143.45,143.44,49.93830861]
[1750876389978,0.04,143.45,143.44,137.23830861]
[1750876390764,0.04,143.47,143.46,87.26]
[1750876390963,33.36334734,143.48,143.43,6.97187654]
[1750876391177,18.64964886,143.46,143.43,13.63667502]
[1750876391892,18.64964886,143.46,143.43,6.97187654]
[1750876392080,18.64964886,143.46,143.42,87.26]
[1750876392081,6.66479848,143.46,143.42,100.8971047]
[1750876392265,18.64964886,143.46,143.42,100.8971047]
[1750876392971,18.64964886,143.47,143.43,6.66479848]
[1750876393172,18.64964886,143.47,143.42,94.23230622]
[1750876393173,18.64964886,143.47,143.44,6.66479848]
[1750876393779,18.64964886,143.47,143.43,6.66479848]
[1750876393959,25.31444734,143.47,143.43,6.66479848]
[1750876394165,25.31444734,143.47,143.43,13.63654209]
[1750876394376,18.64964886,143.47,143.43,13.63654209]
[1750876394573,18.64964886,143.47,143.44,6.66479848]
[1750876394773,18.64964886,143.47,143.45,6.66479848]
[1750876395086,8.0489,143.48,143.46,6.66479848]
[1750876395589,6.2,143.47,143.46,6.66479848]
[1750876396179,6.2,143.47,143.45,13.63549942]
[1750876396592,25.31444734,143.46,143.43,94.23198423]
[1750876396775,18.64964886,143.44,143.42,94.23233353]
[1750876397189,18.64964886,143.44,143.42,87.26]
[1750876397496,6.66479848,143.44,143.39,6.66479848]
[1750876398388,25.31444734,143.44,143.39,13.6387855]
[1750876398805,18.64964886,143.44,143.4,6.66479848]
[1750876399998,18.64964886,143.44,143.41,6.97301443]
[1750876402494,18.64964886,143.45,143.43,6.66479848]
[1750876402713,18.64964886,143.46,143.44,6.66479848]
[1750876403000,18.64964886,143.46,143.43,6.66479848]
[1750876403609,18.64964886,143.46,143.43,13.63643912]
[1750876405983,18.64964886,143.46,143.42,6.97234594]
[1750876406203,25.31444734,143.46,143.42,13.63714442]
[1750876406501,18.64964886,143.46,143.42,13.63714442]
[1750876407407,18.64964886,143.46,143.43,6.66479848]
[1750876407706,18.64964886,143.46,143.45,6.66479848]
[1750876407910,6.2,143.47,143.45,6.66479848]
[1750876408095,6.2,143.47,143.46,6.66479848]
[1750876408296,8.0489,143.48,143.46,93.92479848]
[1750876410109,6.2,143.47,143.46,93.92479848]
[1750876410297,6.2,143.47,143.46,100.89538261]
[1750876411894,6.2,143.47,143.46,93.92479848]
[1750876412712,6.2,143.47,143.46,100.89538261]
[1750876417196,0.04,143.49,143.46,100.89538261]
[1750876417395,0.04,143.49,143.47,6.66479848]
[1750876417589,0.04,143.49,143.46,87.26]
[1750876417803,6.70479848,143.49,143.46,87.26]
[1750876418126,18.64964886,143.48,143.46,87.26]
[1750876418430,18.64964886,143.48,143.44,13.63617107]
[1750876418598,18.64964886,143.48,143.45,6.66479848]
[1750876419290,18.64964886,143.48,143.45,13.63583609]
[1750876422136,18.64964886,143.48,143.46,6.66479848]
[1750876422342,21.94964886,143.47,143.46,6.66479848]
[1750876423242,21.94964886,143.47,143.45,13.63582554]
[1750876423471,21.94964886,143.47,143.46,6.66479848]
[1750876423748,0.04,143.49,143.46,6.66479848]
[1750876424050,5.20594764,143.48,143.45,24.3987022]
[1750876424225,0.04,143.5,143.48,26.0]
[1750876424424,5.59577209,143.65,143.57,28.79181043]
[1750876424632,5.18830824,143.7,143.61,10.14216157]
[1750876424936,5.18830824,143.7,143.65,26.0]
[1750876425135,6.5183,143.71,143.68,6.66479848]
[1750876425317,0.04,143.71,143.68,13.32959696]
[1750876426244,0.04,143.71,143.68,9.97176179]
[1750876427237,0.04,143.71,143.66,25.05916746]
[1750876427238,0.04,143.71,143.66,6.96087985]
[1750876427552,0.04,143.71,143.68,9.97176179]
[1750876429547,0.04,143.71,143.68,16.9316727]
[1750876431030,0.04,143.71,143.66,6.96087985]
[1750876431534,0.04,143.71,143.68,9.97176179]
[1750876431737,10.01176179,143.71,143.65,26.0]
[1750876431938,18.64964886,143.7,143.64,43.34171166]
[1750876432139,18.64964886,143.7,143.66,9.97176179]
[1750876433963,0.04,143.71,143.68,9.97176179]
[1750876434744,0.04,143.71,143.68,10.66775288]
[1750876435646,0.04,143.71,143.68,97.92775288]
[1750876436054,0.04,143.71,143.68,104.88766379]
[1750876437933,0.04,143.71,143.68,105.02982536]
[1750876440440,0.04,143.71,143.7,26.0]
[1750876440645,0.04,143.72,143.7,66.20765601]
[1750876440861,0.04,143.73,143.71,6.72]
[1750876441160,0.04,143.73,143.72,10.66755917]
[1750876441341,0.04,143.73,143.72,40.20755917]
[1750876442262,0.04,143.73,143.72,47.165533]
[1750876444368,0.04,143.76,143.72,64.70262916]
[1750876444566,0.04,143.76,143.75,9.97176179]
[1750876445464,0.04,143.76,143.75,10.66741396]
[1750876446163,0.04,143.76,143.75,17.62393569]
[1750876448839,0.04,143.76,143.75,104.88393569]
[1750876450060,0.04,143.76,143.75,94.9121739]
[1750876452346,0.04,143.76,143.75,101.55532153]
[1750876456353,0.04,143.76,143.75,108.19846916]
[1750876457174,0.04,143.76,143.75,101.55532153]
[1750876457372,0.04,143.76,143.75,134.34063073]
[1750876457676,0.04,143.79,143.76,39.28629526]
[1750876457880,0.04,143.79,143.78,26.0]
[1750876458173,0.04,143.79,143.78,55.32]
[1750876458376,0.04,143.79,143.78,61.96314763]
[1750876460675,0.04,143.79,143.78,68.91821787]
[1750876461055,0.04,143.79,143.78,6.95507024]
[1750876461276,0.04,143.79,143.76,94.21589254]
[1750876461475,0.04,143.79,143.76,100.85904017]
[1750876462072,0.04,143.79,143.76,87.26]
[1750876462489,0.04,143.79,143.76,94.21597644]
[1750876462666,0.04,143.79,143.76,100.85912407]
[1750876463177,0.04,143.79,143.77,6.64314763]
[1750876464480,0.04,143.79,143.76,93.90314763]
[1750876465366,0.04,143.79,143.76,6.64314763]
[1750876465890,0.04,143.79,143.73,17.39273741]
[1750876465891,18.64964886,143.76,143.7,6.96524344]
[1750876466051,6.64314763,143.74,143.69,13.60257417]
[1750876466379,18.64964886,143.76,143.72,6.64314763]
[1750876466758,18.64964886,143.76,143.69,24.35799289]
[1750876466759,25.29279649,143.76,143.71,13.60136378]
[1750876467680,32.24886565,143.76,143.71,13.60136378]
[1750876467973,25.29279649,143.76,143.71,13.60136378]
[1750876468958,18.64964886,143.76,143.72,6.64314763]
[1750876469585,6.64314763,143.75,143.71,6.95821615]
[1750876469878,6.64314763,143.74,143.68,32.95956068]
[1750876470095,25.29279649,143.72,143.68,6.95956068]
[1750876470382,25.29279649,143.72,143.66,6.66314763]
[1750876470383,14.54234763,143.71,143.66,6.66314763]
[1750876470580,14.54234763,143.71,143.66,0.02]
[1750876470581,25.29279649,143.7,143.66,0.02]
[1750876471001,25.29279649,143.7,143.66,6.98069803]
[1750876471867,6.64314763,143.69,143.66,94.24069803]
[1750876472575,25.29279649,143.7,143.66,94.24069803]
[1750876472979,6.64314763,143.69,143.66,94.24069803]
[1750876475072,25.29279649,143.7,143.66,94.24069803]
[1750876476045,6.64314763,143.69,143.66,94.24069803]
[1750876476373,6.64314763,143.68,143.66,94.24069803]
[1750876477396,6.64314763,143.68,143.66,87.28]
[1750876478597,25.29279649,143.67,143.66,0.02]
[1750876480498,32.25319184,143.67,143.66,0.02]
[1750876480795,32.39535341,143.67,143.66,0.02]
[1750876480987,33.91805341,143.67,143.66,0.02]
[1750876487807,63.19805341,143.67,143.66,0.02]
[1750876492016,44.54840455,143.67,143.66,0.02]
[1750876492322,69.26595341,143.67,143.66,0.02]
[1750876493607,44.79181043,143.66,143.65,0.02]
[1750876493811,51.43495806,143.66,143.65,0.02]
[1750876495593,58.39583791,143.66,143.65,0.02]
[1750876498415,32.39583791,143.66,143.65,0.02]
[1750876498599,18.64964886,143.62,143.6,0.02]
[1750876498912,6.64314763,143.61,143.6,0.02]
[1750876499089,6.64314763,143.61,143.58,87.28]
[1750876499090,26.0,143.57,143.43,6.97204211]
[1750876499287,0.14216157,143.5,143.45,0.98007129]
[1750876499512,25.29279649,143.46,143.4,6.97336843]
[1750876499817,6.64314763,143.43,143.4,6.97336843]
[1750876500014,6.64314763,143.43,143.39,6.99382043]
[1750876500329,18.79181043,143.49,143.39,24.428788]
[1750876500530,6.64314763,143.48,143.42,26.0]
[1750876500717,25.29279649,143.49,143.42,26.0]
[1750876501049,25.29279649,143.49,143.44,6.64314763]
[1750876501816,25.29279649,143.51,143.47,6.64314763]
[1750876502325,28.65795857,143.51,143.47,10.00830971]
[1750876502710,28.65795857,143.51,143.46,6.97012624]
[1750876502923,28.65795857,143.51,143.46,16.97843595]
[1750876503231,18.64964886,143.51,143.47,10.00830971]
[1750876504309,28.65795857,143.51,143.46,16.97843595]
[1750876504509,18.64964886,143.47,143.4,104.732599]
[1750876504834,28.65795857,143.47,143.43,10.00830971]
[1750876505207,28.65795857,143.45,143.41,16.98132414]
[1750876505429,10.00830971,143.43,143.4,6.97335472]
[1750876506929,10.00830971,143.43,143.39,6.99379223]
[1750876507231,10.00830971,143.42,143.39,6.99385555]
[1750876507409,28.65795857,143.45,143.4,10.00830971]
[1750876508106,18.64964886,143.45,143.4,10.00830971]
[1750876508309,18.64964886,143.45,143.41,10.00830971]
[1750876508708,18.64964886,143.45,143.42,6.97209381]
[1750876509436,28.65795857,143.45,143.42,6.97209381]
[1750876511059,18.64964886,143.47,143.43,10.00830971]
[1750876511260,28.65795857,143.47,143.43,10.00830971]
[1750876512234,28.65795857,143.47,143.44,6.97155605]
[1750876512919,10.00830971,143.48,143.44,6.97155605]
[1750876513127,28.65795857,143.48,143.44,6.97155605]
[1750876513323,28.65795857,143.48,143.39,0.02]
[1750876513324,10.00830971,143.45,143.39,0.02]
[1750876513514,10.00830971,143.42,143.4,6.97350069]
[1750876513915,10.00830971,143.42,143.39,6.99385889]
[1750876514327,10.00830971,143.42,143.39,0.02]
[1750876514640,10.00830971,143.43,143.39,0.02]
[1750876515544,28.65795857,143.42,143.39,0.02]
[1750876516028,10.00830971,143.43,143.39,0.02]
[1750876516831,18.79181043,143.46,143.4,10.00830971]
[1750876517037,18.64964886,143.44,143.41,10.00830971]
[1750876518035,18.64964886,143.44,143.4,10.00830971]
[1750876518962,18.64964886,143.44,143.41,6.97301443]
[1750876519642,10.00830971,143.45,143.41,6.97301443]
[1750876526946,10.00830971,143.45,143.4,10.00830971]
[1750876527653,10.00830971,143.45,143.41,10.00830971]
[1750876528453,16.97945168,143.45,143.41,10.00830971]
[1750876529164,16.97945168,143.45,143.39,0.02]
[1750876529462,10.00830971,143.4,143.39,0.02]
[1750876529784,10.15047128,143.4,143.39,0.02]
[1750876530161,35.77362083,143.4,143.39,0.02]
[1750876530356,32.45004886,143.4,143.39,0.02]
[1750876532363,35.79379452,143.4,143.39,0.02]
[1750876533862,44.64964886,143.38,143.37,0.02]
[1750876534163,71.05346725,143.38,143.37,0.02]
[1750876534365,82.71195065,143.38,143.37,0.02]
[1750876535249,33.41498385,143.38,143.37,0.02]
[1750876535449,79.34346725,143.38,143.37,0.02]
[1750876535666,95.31498385,143.38,143.37,0.02]
[1750876535868,105.34346725,143.38,143.37,0.02]
[1750876537672,61.65260568,143.38,143.37,0.02]
[1750876537861,61.79476725,143.38,143.37,0.02]
[1750876542759,18.64964886,143.38,143.37,0.02]
[1750876547580,35.65260568,143.38,143.37,0.02]
[1750876548356,35.79476725,143.38,143.37,0.02]
[1750876549161,61.79476725,143.38,143.37,0.02]
[1750876550163,18.64964886,143.38,143.37,0.02]
[1750876550578,35.65260568,143.38,143.37,0.02]
[1750876551275,35.79476725,143.38,143.37,0.02]
[1750876552159,61.79476725,143.38,143.37,0.02]
[1750876553887,97.43476725,143.38,143.37,0.02]
[1750876554071,103.49260568,143.38,143.37,0.02]
[1750876554269,100.14956322,143.38,143.37,0.02]
[1750876554984,100.29172479,143.38,143.37,0.02]
[1750876557483,74.29172479,143.38,143.37,0.02]
[1750876558073,25.27741043,143.37,143.36,0.02]
[1750876558273,45.35013953,143.37,143.36,0.02]
[1750876558663,45.35013953,143.37,143.35,0.02]
[1750876558871,57.96817498,143.36,143.35,0.02]
[1750876559174,64.9436214,143.36,143.35,0.02]
[1750876560464,90.9436214,143.36,143.35,0.02]
[1750876561086,90.80145983,143.36,143.35,0.02]
[1750876561484,47.78964886,143.36,143.35,0.02]
[1750876561689,18.64964886,143.36,143.35,0.02]
[1750876562267,28.68601341,143.36,143.35,0.02]
[1750876562770,35.66145983,143.36,143.35,0.02]
[1750876563081,18.64964886,143.36,143.35,0.02]
[1750876565794,6.2,143.38,143.35,0.02]
[1750876565964,18.64964886,143.37,143.35,0.02]
[1750876568495,25.62471143,143.37,143.35,0.02]
[1750876568896,18.64964886,143.37,143.35,0.02]
[1750876571199,25.62462995,143.37,143.35,0.02]
[1750876571369,6.2,143.38,143.36,37.55076455]
[1750876571575,0.04,143.45,143.37,6.5955]
[1750876571793,10.07636455,143.45,143.4,10.03636455]
[1750876572086,18.83181043,143.45,143.41,10.03636455]
[1750876572292,0.04,143.45,143.4,10.03636455]
[1750876572483,10.07636455,143.45,143.4,10.03636455]
[1750876572683,28.72601341,143.45,143.41,6.97301443]
[1750876572870,18.68964886,143.45,143.41,17.00937898]
[1750876573496,25.6607705,143.45,143.41,17.00937898]
[1750876574095,28.82817498,143.44,143.37,6.5955]
[1750876574282,10.07636455,143.43,143.38,10.03636455]
[1750876574668,10.07636455,143.43,143.39,10.03636455]
[1750876574669,17.04844172,143.43,143.39,10.03636455]
[1750876575293,18.79181043,143.42,143.38,10.03636455]
[1750876576395,18.79181043,143.42,143.35,0.02]
[1750876576396,10.03636455,143.41,143.35,0.02]
[1750876576606,18.64964886,143.38,143.35,6.99575729]
[1750876577178,35.66048731,143.38,143.35,0.02]
[1750876577887,28.68601341,143.36,143.35,0.02]
[1750876578084,54.82817498,143.36,143.35,0.02]
[1750876578693,80.96725685,143.36,143.35,0.02]
[1750876578875,91.0036214,143.36,143.35,0.02]
[1750876579880,80.96725685,143.36,143.35,0.02]
[1750876580200,91.0036214,143.36,143.35,0.02]
[1750876580501,76.47460759,143.36,143.35,0.02]
[1750876582492,76.47460759,143.36,143.31,0.02]
[1750876582493,26.0,143.33,143.31,0.02]
[1750876582677,90.58817498,143.32,143.31,0.02]
[1750876582879,95.77223005,143.32,143.31,0.02]
[1750876584516,102.74962329,143.32,143.31,0.02]
[1750876585020,97.56556822,143.32,143.31,0.02]
[1750876586298,42.34556822,143.32,143.31,0.02]
[1750876588279,47.54556822,143.32,143.31,0.02]
[1750876589005,42.34556822,143.32,143.31,0.02]
[1750876605391,6.97593303,143.35,143.31,0.02]
[1750876605688,18.64964886,143.32,143.31,0.02]
[1750876608108,18.64964886,143.34,143.31,10.05636455]
[1750876608304,18.64964886,143.34,143.32,10.03636455]
[1750876608719,18.64964886,143.35,143.32,97.33636455]
[1750876608909,18.64964886,143.35,143.33,10.03636455]
[1750876609225,18.64964886,143.36,143.33,10.03636455]
[1750876610323,18.64964886,143.36,143.32,87.3]
[1750876610324,18.64964886,143.36,143.32,104.31369353]
[1750876610623,35.66153141,143.36,143.32,87.3]
[1750876610824,10.03636455,143.35,143.32,87.3]
[1750876611720,18.64964886,143.32,143.31,0.02]
[1750876611900,28.68601341,143.32,143.31,0.02]
[1750876612306,18.64964886,143.32,143.31,0.02]
[1750876612818,35.66340665,143.32,143.31,0.02]
[1750876614023,25.6270421,143.32,143.31,0.02]
[1750876614324,35.80556822,143.32,143.31,0.02]
[1750876615821,61.80556822,143.32,143.31,0.02]
[1750876619716,35.80556822,143.32,143.31,0.02]
[1750876620016,40.98549289,143.32,143.31,0.02]
[1750876620323,37.64324619,143.32,143.31,0.02]
[1750876621633,51.76920367,143.32,143.31,0.02]
[1750876621833,58.46332152,143.32,143.31,0.02]
[1750876622523,58.32115995,143.32,143.31,0.02]
[1750876622737,44.79181043,143.32,143.31,0.02]
[1750876623109,18.64964886,143.32,143.31,0.02]
[1750876625337,32.46332152,143.32,143.31,0.02]
[1750876626242,25.76920367,143.32,143.31,0.02]
[1750876626413,32.46332152,143.32,143.31,0.02]
[1750876628336,58.46332152,143.32,143.31,0.02]
[1750876629832,63.65675237,143.32,143.31,0.02]
[1750876630215,58.46332152,143.32,143.31,0.02]
[1750876630735,63.65716423,143.32,143.31,0.02]
[1750876631041,58.46332152,143.32,143.31,0.02]
[1750876638851,37.64889888,143.32,143.31,0.02]
[1750876639146,45.67839888,143.32,143.31,0.02]
[1750876641461,44.64964886,143.3,143.29,0.02]
[1750876641621,85.54934407,143.3,143.29,0.02]
[1750876642229,44.64964886,143.27,143.26,0.02]
[1750876642456,80.36376671,143.27,143.26,0.02]
[1750876645048,87.343595,143.27,143.26,0.02]
[1750876645351,80.79163872,143.27,143.26,0.02]
[1750876645557,87.48575657,143.27,143.26,0.02]
[1750876651469,93.90575657,143.27,143.26,0.02]
[1750876652566,100.64173288,143.27,143.26,0.02]
[1750876653348,26.0,143.23,143.2,0.02]
[1750876653555,25.48592828,143.21,143.2,0.02]
[1750876653776,60.92592828,143.21,143.2,0.02]
[1750876655393,67.90868088,143.21,143.2,0.02]
[1750876656260,74.60279873,143.21,143.2,0.02]
[1750876656474,18.79181043,143.2,143.19,1.4921745]
[1750876656668,40.32764613,143.2,143.19,1.4921745]
[1750876657370,47.31088635,143.2,143.19,1.4921745]
[1750876657749,34.1005685,143.2,143.19,1.4921745]
[1750876658688,40.79468635,143.2,143.19,1.4921745]
[1750876658980,40.79468635,143.2,143.11,1.539]
[1750876658981,18.79181043,143.16,143.11,1.539]
[1750876659275,18.64964886,143.13,143.11,1.539]
[1750876659479,47.68964886,143.13,143.11,1.539]
[1750876659667,18.64964886,143.14,143.12,6.69411785]
[1750876660067,18.64964886,143.15,143.13,6.69411785]
[1750876660271,47.68964886,143.17,143.13,93.99411785]
[1750876660672,54.38376671,143.17,143.13,93.99411785]
[1750876660977,25.34376671,143.17,143.13,93.99411785]
[1750876661189,47.68964886,143.17,143.13,93.99411785]
[1750876661381,18.64964886,143.17,143.13,93.99411785]
[1750876661583,18.64964886,143.17,143.13,100.98050902]
[1750876662285,18.64964886,143.17,143.13,94.28639117]
[1750876662788,18.64964886,143.17,143.13,100.98050902]
[1750876663787,18.64964886,143.17,143.14,6.69411785]
[1750876664159,47.68964886,143.18,143.15,6.69411785]
[1750876664482,6.42,143.2,143.17,6.69411785]
[1750876664684,6.42,143.2,143.18,6.69411785]
[1750876664876,29.04,143.23,143.19,6.69411785]
[1750876665262,18.64964886,143.23,143.2,6.69411785]
[1750876666277,18.64964886,143.23,143.2,13.67733454]
[1750876666783,18.64964886,143.23,143.19,6.98352182]
[1750876666979,18.64964886,143.23,143.2,6.69411785]
[1750876667890,18.64964886,143.23,143.19,13.67763967]
[1750876668968,18.64964886,143.23,143.2,6.69411785]
[1750876670990,18.64964886,143.23,143.2,93.99411785]
[1750876671889,18.64964886,143.23,143.2,100.97731175]
[1750876672190,55.04,143.25,143.22,6.69411785]
[1750876672404,8.48005552,143.3,143.24,6.69411785]
[1750876672609,0.14216157,143.28,143.25,6.69411785]
[1750876673474,18.64964886,143.27,143.25,6.69411785]
[1750876673672,18.64964886,143.27,143.23,6.98152269]
[1750876673673,18.64964886,143.27,143.24,6.69411785]
[1750876674594,18.64964886,143.27,143.24,13.67516819]
[1750876674797,18.64964886,143.27,143.25,6.69411785]
[1750876675094,26.0,143.3,143.26,6.69411785]
[1750876675282,18.64964886,143.29,143.27,6.69411785]
[1750876675484,18.64964886,143.29,143.26,6.69411785]
[1750876676689,18.64964886,143.29,143.26,13.67430689]
[1750876678581,18.64964886,143.29,143.27,6.69411785]
[1750876678901,18.64964886,143.29,143.28,6.69411785]
[1750876680480,18.64964886,143.29,143.27,6.69411785]
[1750876680898,18.64964886,143.29,143.26,94.28011172]
[1750876680899,18.64964886,143.29,143.26,87.3]
[1750876681104,25.62861202,143.29,143.26,93.99411785]
[1750876681403,25.62861202,143.29,143.26,87.3]
[1750876682004,18.64964886,143.27,143.26,87.3]
[1750876682193,6.83627942,143.27,143.23,93.99411785]
[1750876682694,18.64964886,143.26,143.23,87.3]
[1750876683913,32.32437471,143.26,143.22,6.69411785]
[1750876684087,25.63025686,143.26,143.22,6.69411785]
[1750876684908,25.63025686,143.26,143.22,13.6763017]
[1750876685104,25.63025686,143.26,143.22,6.98218385]
[1750876685308,25.63025686,143.26,143.22,13.6763017]
[1750876686015,18.64964886,143.24,143.2,87.3]
[1750876686236,18.64964886,143.24,143.19,6.69411785]
[1750876686237,0.14216157,143.23,143.19,6.69411785]
[1750876686393,18.64964886,143.22,143.19,6.69411785]
[1750876686585,25.34376671,143.22,143.18,6.69411785]
[1750876686790,25.34376671,143.22,143.17,13.67869466]
[1750876687000,25.34376671,143.22,143.17,100.97869466]
[1750876687601,25.34376671,143.22,143.18,6.69411785]
[1750876687785,18.64964886,143.22,143.18,6.69411785]
[1750876688207,18.64964886,143.22,143.18,13.67819991]
[1750876688507,25.63201554,143.22,143.18,6.69411785]
[1750876689211,32.32613339,143.22,143.18,6.69411785]
[1750876689406,32.32613339,143.22,143.17,100.97859462]
[1750876689908,18.64964886,143.22,143.18,6.69411785]
[1750876690614,18.64964886,143.22,143.17,94.28447677]
[1750876690799,18.64964886,143.22,143.18,6.69411785]
[1750876691116,25.63191777,143.22,143.18,6.69411785]
[1750876691817,25.63191777,143.22,143.18,93.99411785]
[1750876692311,32.32603562,143.22,143.18,87.3]
[1750876692531,18.64964886,143.23,143.21,6.69411785]
[1750876692695,18.64964886,143.26,143.22,6.69411785]
[1750876692888,13.11411785,143.29,143.24,6.69411785]
[1750876693208,13.39904183,143.29,143.25,6.69411785]
[1750876693409,18.79181043,143.28,143.25,6.69411785]
[1750876695192,25.7712548,143.28,143.25,6.69411785]
[1750876695409,7.12160594,143.28,143.25,6.69411785]
[1750876697619,7.12160594,143.28,143.25,93.99411785]
[1750876698101,0.14216157,143.28,143.26,6.69411785]
[1750876698310,18.64964886,143.29,143.26,6.69411785]
[1750876699108,18.64964886,143.29,143.27,6.69411785]
[1750876699307,18.64964886,143.29,143.27,93.99411785]
[1750876699925,18.64964886,143.29,143.28,6.69411785]
[1750876700106,44.64964886,143.32,143.28,6.69411785]
[1750876700307,44.64964886,143.32,143.29,6.69411785]
[1750876703525,44.64964886,143.32,143.29,93.99411785]
[1750876703711,51.62708765,143.32,143.29,87.3]
[1750876704326,0.14216157,143.31,143.29,87.3]
[1750876704700,44.64964886,143.32,143.29,93.99411785]
[1750876704916,44.64964886,143.32,143.3,6.69411785]
[1750876705521,18.64964886,143.32,143.3,6.69411785]
[1750876706622,18.64964886,143.32,143.3,13.67247843]
[1750876707033,0.04,143.33,143.31,6.69411785]
[1750876707231,18.68964886,143.33,143.31,6.69411785]
[1750876707517,18.68964886,143.33,143.3,6.69411785]
[1750876708325,18.68964886,143.33,143.27,6.97982829]
[1750876708326,18.68964886,143.33,143.31,6.69411785]
[1750876709828,18.68964886,143.33,143.3,6.69411785]
[1750876710024,18.68964886,143.33,143.29,6.69411785]
[1750876710411,6.69411785,143.31,143.26,93.99411785]
[1750876710804,6.69411785,143.31,143.26,87.3]
[1750876711125,6.69411785,143.31,143.26,93.99411785]
[1750876711500,6.69411785,143.31,143.26,100.97420164]
[1750876711501,13.67226279,143.31,143.26,100.97420164]
[1750876713402,6.97814494,143.31,143.27,13.67391082]
[1750876713628,6.97814494,143.31,143.27,6.69411785]
[1750876714530,6.97814494,143.31,143.26,94.28007752]
[1750876714735,0.14216157,143.3,143.26,93.99411785]
[1750876715028,0.14216157,143.3,143.27,6.69411785]
[1750876717014,7.12061887,143.3,143.27,6.69411785]
[1750876717219,18.64964886,143.29,143.27,6.69411785]
[1750876717535,18.64964886,143.29,143.26,6.69411785]
[1750876718611,18.64964886,143.29,143.25,94.28063337]
[1750876718813,18.64964886,143.29,143.26,6.69411785]
[1750876719725,18.64964886,143.29,143.26,13.67436749]
[1750876720133,18.64964886,143.29,143.27,6.69411785]
[1750876720734,26.0,143.31,143.28,6.69411785]
[1750876721046,18.64964886,143.3,143.28,6.69411785]
[1750876721534,18.64964886,143.3,143.26,6.98024964]
[1750876721834,18.64964886,143.3,143.28,6.69411785]
[1750876722018,18.68964886,143.33,143.29,6.69411785]
[1750876722334,18.68964886,143.33,143.31,6.69411785]
[1750876724408,18.68964886,143.33,143.3,6.69411785]
[1750876726844,18.68964886,143.33,143.31,6.69411785]
[1750876727138,18.68964886,143.33,143.31,93.99411785]
[1750876729326,18.68964886,143.33,143.32,6.69411785]